bitfinex-derivatives/quotes_ETHF0:USTF0_20251116
["timestamp","ask_amount","ask_price","bid_price","bid_amount"]
[1763316013129,12.08083184,3081.4,3080.9,0.00294739]
[1763316013130,9.40596456,3081.4,3081.2,3.2078]
[1763316013323,8.87982456,3081.3,3081.2,3.2078]
[1763316013515,5.66715047,3081.4,3080.8,3.2078]
[1763316013921,5.66715047,3081.3,3081.2,3.2078]
[1763316014122,0.00360269,3081.5,3081.2,3.21119115]
[1763316014420,3.2078,3083.1,3081.2,3.21119115]
[1763316014626,0.00487409,3082.5,3082.2,3.2078]
[1763316014826,1.4446,3082.1,3081.8,0.00487409]
[1763316015022,3.2078,3081.9,3080.1,3.2078]
[1763316015222,3.2078,3081.1,3080.1,3.2078]
[1763316015732,3.19673334,3080.2,3080.1,3.2078]
[1763316016024,3.19988732,3080.2,3080.1,3.21104528]
[1763316016329,6.40768732,3080.2,3079.3,3.2078]
[1763316016622,6.40768732,3080.2,3079.7,3.2078]
[1763316016623,3.20159928,3080.1,3079.7,3.2078]
[1763316017025,3.19673334,3080.0,3079.7,3.2078]
[1763316017524,3.19673334,3079.9,3079.7,0.00269931]
[1763316017726,6.0,3079.9,3077.8,3.2078]
[1763316017919,3.2078,3079.1,3077.8,3.2078]
[1763316018420,3.2078,3078.7,3077.8,3.2078]
[1763316018623,4.7213,3078.7,3077.8,3.21119471]
[1763316018820,3.2078,3078.3,3077.8,0.00339471]
[1763316019124,3.2078,3077.9,3077.8,0.00339471]
[1763316019325,3.21110518,3077.9,3077.8,0.00339471]
[1763316019623,3.21110518,3077.9,3077.1,3.2078]
[1763316019624,12.40783852,3077.9,3077.1,3.2078]
[1763316019824,12.40783852,3077.9,3076.5,3.2078]
[1763316019825,3.2078,3077.4,3076.5,3.2078]
[1763316020025,3.2078,3077.4,3075.5,3.25683221]
[1763316020026,3.2078,3076.9,3075.9,3.2078]
[1763316020622,3.19673334,3076.8,3075.9,3.21034052]
[1763316021030,3.19673334,3076.7,3076.3,3.2078]
[1763316021332,1.5135,3077.0,3076.3,3.2078]
[1763316021517,3.19673334,3076.9,3076.7,3.2078]
[1763316021920,3.19673334,3076.8,3076.7,3.2078]
[1763316022132,0.00487409,3077.3,3076.7,3.2078]
[1763316022320,3.19673334,3077.2,3076.7,3.2078]
[1763316022526,3.19673334,3077.2,3077.1,3.2078]
[1763316022829,0.00487409,3077.3,3077.1,3.2078]
[1763316023019,2.2839455,3081.1,3079.5,3.25683221]
[1763316023334,3.2078,3081.9,3081.0,3.2078]
[1763316023822,3.2078,3082.7,3081.8,3.2078]
[1763316024029,0.00323364,3081.9,3081.8,3.2078]
[1763316024321,0.00323364,3081.9,3081.8,3.21094751]
[1763316024725,3.19996698,3081.9,3081.8,3.21094751]
[1763316025326,9.19996698,3081.9,3081.8,0.00314751]
[1763316025531,3.19996698,3081.9,3081.8,0.00314751]
[1763316026127,9.19996698,3081.9,3081.8,0.00314751]
[1763316026327,9.19996698,3081.9,3081.0,3.2078]
[1763316026631,3.2078,3081.6,3081.0,3.2078]
[1763316026831,3.19673334,3081.1,3081.0,3.2078]
[1763316027031,3.19673334,3081.1,3080.5,3.2078]
[1763316027228,3.2078,3081.2,3080.5,3.21056198]
[1763316027433,0.00323364,3081.9,3080.9,3.2078]
[1763316027630,0.00323364,3081.9,3081.6,3.2078]
[1763316028029,3.19673334,3081.8,3081.6,3.2078]
[1763316028236,0.00323364,3081.9,3081.6,3.2078]
[1763316028436,3.19673334,3081.7,3081.6,3.2078]
[1763316028631,3.19673334,3081.7,3081.2,3.2078]
[1763316028933,0.00323364,3081.9,3081.2,3.2078]
[1763316029734,3.19673334,3081.5,3081.2,3.2078]
[1763316030132,3.19673334,3081.3,3081.2,3.2078]
[1763316030435,3.19673334,3081.4,3081.2,3.2078]
[1763316030632,3.21103364,3081.9,3081.2,3.2078]
[1763316031335,3.19673334,3081.8,3080.5,0.00276198]
[1763316031540,0.00323364,3081.9,3081.7,3.2078]
[1763316031934,3.19673334,3081.8,3081.7,3.2078]
[1763316032844,0.00323364,3081.9,3081.7,3.2078]
[1763316033527,3.2078,3083.3,3082.1,3.25683221]
[1763316033730,3.2078,3083.7,3082.8,3.2078]
[1763316033923,13.2065,3085.5,3083.2,3.2078]
[1763316033924,3.2078,3084.3,3083.2,3.2078]
[1763316034131,3.2078,3084.3,3083.7,3.2078]
[1763316034531,1.51720416,3083.8,3083.7,3.21019618]
[1763316034733,4.7139375,3083.8,3083.7,3.21019618]
[1763316034925,0.00486585,3084.1,3083.7,3.21019618]
[1763316035130,3.2078,3084.9,3083.7,3.21019618]
[1763316035337,4.7213,3085.5,3084.5,3.2078]
[1763316035636,4.7213,3085.5,3084.9,3.2078]
[1763316035831,1.5135,3085.5,3084.9,3.2078]
[1763316036032,1.52168673,3085.5,3085.3,3.2078]
[1763316036238,4.72948673,3085.5,3085.1,1e-08]
[1763316036829,3.19673334,3085.2,3085.1,1e-08]
[1763316037231,9.19673334,3085.2,3085.1,1e-08]
[1763316037426,3.19673334,3085.2,3085.1,1e-08]
[1763316037829,3.21598673,3085.5,3085.1,1e-08]
[1763316038337,3.19673334,3085.2,3085.1,1e-08]
[1763316039040,3.19673334,3085.2,3084.1,3.2078]
[1763316039041,9.19673333,3085.2,3084.1,3.2078]
[1763316039234,3.2078,3084.8,3084.1,3.2078]
[1763316039434,1.53288673,3085.5,3084.5,3.2078]
[1763316039435,3.2078,3085.3,3084.5,3.2078]
[1763316039733,3.2078,3084.9,3084.5,3.2078]
[1763316039937,3.19673333,3084.6,3084.4,0.00486585]
[1763316040135,3.2078,3084.5,3083.7,0.00239618]
[1763316040335,4.78971894,3085.5,3082.5,3.2078]
[1763316040336,6.40453333,3083.8,3082.5,3.2078]
[1763316040545,4.78971894,3085.5,3080.6,0.83404164]
[1763316040546,4.7325,3082.8,3081.7,3.2078]
[1763316040836,3.2078,3082.2,3081.5,3.2078]
[1763316041148,3.21266585,3082.2,3081.5,0.00486585]
[1763316041332,0.00735156,3082.2,3081.5,0.00764239]
[1763316041534,3.19673333,3081.9,3081.5,3.21544239]
[1763316041736,0.00735156,3082.2,3081.5,3.21544239]
[1763316041936,0.00735156,3082.2,3081.9,3.2078]
[1763316042138,3.2078,3083.5,3081.9,3.2078]
[1763316042333,3.2078,3083.5,3082.7,3.2078]
[1763316042742,3.2078,3084.8,3083.3,3.2078]
[1763316043038,3.19673333,3084.2,3084.1,3.2078]
[1763316043239,0.00337169,3084.2,3084.1,0.00314774]
[1763316043634,3.20010502,3084.2,3084.1,0.00314774]
[1763316044339,0.00337169,3084.2,3083.0,3.2078]
[1763316044643,3.19673333,3083.7,3083.0,3.2078]
[1763316044842,3.2078,3083.7,3083.0,3.2078]
[1763316045043,3.19673333,3083.6,3083.0,3.2078]
[1763316045239,1.5247,3084.0,3083.0,3.21518851]
[1763316045435,3.19673333,3083.6,3083.0,0.00738851]
[1763316045642,1.5247,3084.0,3083.4,3.2078]
[1763316045943,0.00337169,3084.2,3083.5,3.2078]
[1763316046540,0.00337169,3084.2,3083.0,3.21518851]
[1763316046743,3.2078,3083.4,3082.4,3.2078]
[1763316047043,1.5247,3084.0,3082.0,3.2078]
[1763316047044,3.2078,3082.9,3082.0,3.2078]
[1763316047239,3.19673333,3082.5,3082.0,3.2078]
[1763316047440,4.7325,3082.5,3081.5,3.2078]
[1763316047637,3.2078,3083.0,3081.5,3.2078]
[1763316047836,4.7325,3084.0,3082.8,3.2078]
[1763316048041,3.2078,3083.6,3082.8,3.2078]
[1763316048443,3.2078,3084.1,3083.2,3.2078]
[1763316048650,3.2078,3084.1,3083.6,3.2078]
[1763316049145,0.00823754,3084.2,3084.0,3.2078]
[1763316049448,3.2078,3085.7,3084.0,3.2078]
[1763316049644,3.2078,3085.7,3084.9,3.2078]
[1763316050143,3.2078,3085.3,3084.4,3.2078]
[1763316050336,3.2078,3085.3,3084.8,3.2078]
[1763316050337,0.00486585,3085.2,3084.8,3.2078]
[1763316051242,0.00486585,3085.2,3084.4,3.21110833]
[1763316051442,0.00486585,3085.2,3084.8,3.2078]
[1763316052540,0.00486585,3085.2,3084.4,0.00330833]
[1763316052541,3.2078,3085.1,3084.4,3.21110833]
[1763316053252,5.71146534,3089.0,3085.5,3.2078]
[1763316053544,3.2078,3091.8,3088.9,7.09047962]
[1763316053744,1.5247,3091.2,3089.8,0.85147566]
[1763316054050,3.2078,3090.4,3089.7,3.2078]
[1763316054240,16.94046537,3091.1,3090.2,2.26174053]
[1763316054439,16.44061289,3091.1,3091.0,2.2600109]
[1763316054637,1.5247,3091.2,3091.0,1.37350411]
[1763316054840,0.13991687,3091.4,3091.1,4.58130411]
[1763316055139,1.5247,3092.6,3091.3,1.68491207]
[1763316055342,3.2078,3092.2,3091.6,0.84237705]
[1763316055646,0.00236833,3092.2,3091.7,1.31960243]
[1763316055942,6.05971748,3092.1,3091.2,3.2078]
[1763316056155,0.00485759,3092.0,3091.7,3.2078]
[1763316056542,6.05971748,3091.9,3091.7,3.2078]
[1763316056947,6.05971748,3091.8,3091.7,3.2078]
[1763316057148,3.2078,3091.9,3090.6,3.2078]
[1763316057353,3.2078,3091.3,3090.6,3.2078]
[1763316057544,3.2078,3091.3,3089.7,0.00418984]
[1763316057545,3.2078,3091.2,3089.7,3.21198984]
[1763316057855,3.2078,3091.2,3090.5,3.2078]
[1763316058043,2.84705989,3091.1,3091.0,3.2078]
[1763316058243,2.84705989,3091.4,3091.0,3.2078]
[1763316058441,3.2078,3091.2,3090.0,3.2078]
[1763316058653,3.2078,3090.2,3089.7,0.00418984]
[1763316059158,3.2078,3090.9,3090.0,3.2078]
[1763316059451,0.00485759,3090.8,3090.4,3.2078]
[1763316059646,3.2078,3092.0,3090.4,3.2078]
[1763316059844,3.2078,3091.4,3090.2,3.2078]
[1763316060044,3.2078,3091.9,3091.2,3.2078]
[1763316060251,5.81133952,3093.6,3092.5,3.2078]
[1763316060451,3.2078,3093.3,3092.6,3.2078]
[1763316060754,3.21264918,3093.3,3092.6,3.21264918]
[1763316060954,0.52416,3093.0,3092.6,3.21264918]
[1763316061157,0.00362929,3093.0,3092.6,3.21574245]
[1763316061458,4.6749,3092.8,3091.6,3.2078]
[1763316061749,4.6749,3092.8,3090.3,3.88267962]
[1763316061750,3.2078,3091.7,3091.2,3.2078]
[1763316062345,3.2078,3095.2,3091.6,3.2078]
[1763316062547,3.2424,3098.7,3095.9,3.2078]
[1763316062752,3.2078,3100.1,3097.5,3.2078]
[1763316062954,3.20294241,3100.7,3097.0,3.88267962]
[1763316063251,3.2078,3100.2,3099.4,3.2078]
[1763316063447,0.00389957,3100.2,3099.8,3.2078]
[1763316063752,0.00389957,3100.2,3099.8,2.75580603]
[1763316063753,3.20778245,3100.1,3099.8,2.75580603]
[1763316064050,3.20778245,3100.1,3096.2,11.92033884]
[1763316064051,1.4671,3099.6,3098.2,3.2078]
[1763316064260,3.2078,3098.5,3097.2,3.2078]
[1763316064553,3.2078,3098.5,3097.6,3.2078]
[1763316064742,3.2078,3097.7,3096.7,3.2078]
[1763316064945,3.2078,3097.3,3096.9,0.00484004]
[1763316065254,0.00484004,3097.5,3096.9,0.00484004]
[1763316065452,3.2078,3097.4,3096.7,0.00330842]
[1763316065753,0.00484004,3097.5,3097.0,3.2078]
[1763316065959,3.2078,3099.5,3097.4,3.2078]
[1763316066251,3.2078,3099.2,3098.3,3.2078]
[1763316066446,3.2078,3100.1,3099.1,3.2078]
[1763316066653,3.2078,3099.7,3099.1,3.2078]
[1763316066956,3.21667114,3099.7,3099.1,3.21517277]
[1763316067155,0.00887114,3099.7,3099.1,3.21517277]
[1763316067350,0.52304,3099.6,3099.1,3.21517277]
[1763316067553,0.52304,3099.6,3092.9,3.17485731]
[1763316067554,0.52312,3099.1,3097.9,3.2078]
[1763316067754,3.2078,3098.4,3097.5,3.2078]
[1763316067952,3.73105,3098.4,3097.5,3.2078]
[1763316068150,3.2078,3097.6,3096.7,3.2078]
[1763316068352,3.2078,3097.2,3096.7,3.2078]
[1763316068548,3.2078,3097.2,3096.6,0.00484004]
[1763316068549,0.52352,3096.7,3096.6,0.00484004]
[1763316068746,6.0,3096.7,3094.7,3.2078]
[1763316068962,3.2078,3095.4,3094.3,3.2078]
[1763316069147,3.2078,3095.4,3093.2,3.88267962]
[1763316069148,3.2078,3095.8,3094.9,3.2078]
[1763316069355,3.2078,3097.0,3095.3,3.2078]
[1763316069655,3.2078,3095.8,3095.3,0.00399187]
[1763316069847,3.2078,3096.4,3095.3,0.00399187]
[1763316070045,3.2078,3095.6,3094.7,3.2078]
[1763316070250,3.2078,3095.6,3087.7,2.24654942]
[1763316070251,3.2078,3094.8,3093.1,3.2078]
[1763316070443,1.4671,3095.1,3093.1,3.2078]
[1763316070444,3.2078,3094.1,3093.1,3.2078]
[1763316070652,0.00484816,3094.3,3093.6,3.2078]
[1763316071162,0.00843639,3094.3,3093.6,3.2115344]
[1763316071361,0.00843639,3094.3,3094.0,3.2078]
[1763316072061,0.52402,3093.8,3093.6,0.0037344]
[1763316072357,0.52403,3093.7,3093.0,3.1995344]
[1763316072544,0.52411,3093.3,3093.0,3.1995344]
[1763316072750,0.52402,3093.9,3093.0,3.1995344]
[1763316072947,3.2078,3094.0,3093.0,3.1995344]
[1763316073354,3.2078,3094.0,3093.0,3.20363236]
[1763316073553,0.52413,3093.2,3093.0,3.20363236]
[1763316073760,0.52415,3093.0,3092.8,2.93997015]
[1763316074056,3.2078,3093.1,3091.7,3.2078]
[1763316074247,0.00484816,3092.7,3091.7,3.2078]
[1763316074453,0.00484816,3092.7,3090.0,3.93267962]
[1763316074454,0.52432,3092.1,3091.0,3.2078]
[1763316074654,0.52432,3092.1,3091.4,3.2078]
[1763316074951,0.00334065,3092.1,3091.4,3.2078]
[1763316075157,0.5244,3091.6,3091.4,3.2078]
[1763316075553,0.5244,3091.6,3090.1,0.00228795]
[1763316075554,3.2078,3091.8,3090.5,3.2078]
[1763316075754,0.52462,3090.3,3090.1,0.00228795]
[1763316075957,3.2078,3090.2,3090.1,0.00228795]
[1763316076455,3.2078,3090.2,3087.5,3.88267962]
[1763316076456,0.52478,3089.3,3088.7,3.2078]
[1763316076661,0.00484816,3090.5,3088.7,3.2078]
[1763316076662,0.52482,3089.1,3088.7,3.2078]
[1763316076958,3.2078,3090.3,3088.7,3.2078]
[1763316077155,3.2078,3090.3,3089.1,3.2078]
[1763316077363,0.52475,3089.5,3089.1,3.21007789]
[1763316077560,0.5248,3089.2,3089.1,0.00227789]
[1763316077859,0.5247,3089.8,3089.1,3.21007789]
[1763316078157,3.2078,3089.9,3089.1,3.21007789]
[1763316078461,0.52476,3089.5,3089.1,0.00227789]
[1763316078660,3.2078,3089.9,3089.1,3.21007789]
[1763316078866,0.52472,3089.7,3089.1,3.21007789]
[1763316079055,3.2078,3090.0,3089.1,3.21007789]
[1763316079253,0.52479,3089.3,3089.1,0.00227789]
[1763316079758,3.2078,3089.5,3087.7,3.2078]
[1763316079759,6.0,3089.2,3087.7,3.2078]
[1763316079956,3.2078,3088.3,3087.7,3.2078]
[1763316080157,0.00485618,3088.8,3087.0,4.2773]
[1763316080158,0.52505,3087.7,3087.0,4.2773]
[1763316080355,3.2078,3088.3,3087.5,3.2078]
[1763316080553,3.2078,3088.3,3087.0,1.0695]
[1763316080554,3.73269,3088.7,3087.9,3.2078]
[1763316080761,0.52498,3088.2,3087.9,3.21029594]
[1763316081064,0.00383258,3088.7,3087.9,3.21029594]
[1763316081261,3.21163258,3088.7,3088.0,3.2078]
[1763316081759,0.52494,3088.4,3087.9,0.00249594]
[1763316081955,3.21163258,3088.7,3087.9,3.21029594]
[1763316082156,0.00383258,3088.7,3087.9,3.21029594]
[1763316082361,0.52872258,3088.7,3087.9,3.21029594]
[1763316082564,0.00383258,3088.7,3087.9,3.21029594]
[1763316082862,0.00383258,3088.7,3088.3,3.2078]
[1763316083968,3.2078,3089.9,3088.6,0.096]
[1763316084263,0.7582,3092.3,3088.6,0.096]
[1763316084264,3.2078,3090.4,3089.8,3.2078]
[1763316084660,0.52462,3090.3,3089.8,3.2078]
[1763316084865,0.00278638,3090.3,3089.8,3.2078]
[1763316085659,3.2078,3089.9,3089.7,0.00485618]
[1763316085860,0.52469,3089.9,3089.7,0.00485618]
[1763316086169,0.52468,3089.9,3089.7,0.00485618]
[1763316086667,3.73245,3090.1,3089.7,0.00485618]
[1763316086965,0.00278638,3090.3,3089.8,3.2078]
[1763316087166,0.00278638,3090.3,3090.2,3.2078]
[1763316087360,3.2078,3091.0,3090.2,3.21074872]
[1763316087560,3.2078,3091.0,3090.6,3.2078]
[1763316088063,3.2078,3091.0,3090.2,0.00294872]
[1763316088261,3.21200453,3091.0,3090.2,0.00294872]
[1763316088462,0.00485618,3090.9,3090.5,3.2078]
[1763316090156,3.2078,3091.6,3090.6,6.0]
[1763316090357,3.2078,3092.8,3091.5,4.6446]
[1763316090655,3.2078,3093.3,3092.5,3.2078]
[1763316090860,3.2078,3093.7,3092.9,3.2078]
[1763316091062,0.00251367,3093.7,3093.3,3.2078]
[1763316091281,3.2078,3094.7,3093.3,3.2078]
[1763316091567,3.2078,3094.9,3094.0,3.2078]
[1763316092062,0.52377,3095.3,3094.4,3.2078]
[1763316092265,0.00484794,3095.2,3094.9,3.2078]
[1763316092466,0.00484794,3095.2,3094.5,3.21264794]
[1763316092958,0.00484794,3095.2,3095.0,3.2078]
[1763316093264,0.00484794,3095.2,3094.5,0.00484794]
[1763316093466,0.00484794,3095.2,3094.9,3.2078]
[1763316094064,3.2078,3095.1,3094.5,0.00484794]
[1763316094366,0.52386,3094.8,3094.5,0.00484794]
[1763316094572,0.52382,3095.0,3094.5,0.00484794]
[1763316094866,0.52384,3094.9,3094.5,0.00484794]
[1763316095253,0.52387,3094.7,3094.4,3.2078]
[1763316095460,0.52387,3094.7,3093.0,1.4368]
[1763316095461,3.2078,3094.5,3093.8,3.2078]
[1763316095663,6.0,3094.8,3092.9,0.00274045]
[1763316095664,0.52414,3093.1,3092.9,0.00274045]
[1763316095865,3.2078,3093.0,3092.4,13.9727832]
[1763316096167,0.00391127,3093.1,3092.4,13.9727832]
[1763316096570,0.52418,3092.9,3092.4,13.97763114]
[1763316096961,3.2078,3092.7,3092.4,13.98165046]
[1763316097365,0.52423,3092.6,3092.4,13.98165046]
[1763316097772,0.52432,3092.0,3091.5,3.2078]
[1763316097971,3.2078,3092.3,3091.5,3.2078]
[1763316098274,3.2078,3092.1,3091.1,3.2078]
[1763316098476,3.73211,3092.1,3091.5,3.2078]
[1763316098661,3.73695794,3092.1,3091.5,3.21264794]
[1763316098868,0.52433,3092.0,3091.5,3.21681413]
[1763316099071,3.21264794,3092.1,3091.5,3.21681413]
[1763316099367,3.2078,3091.6,3091.5,0.00901413]
[1763316099569,3.2078,3091.6,3090.3,3.2078]
[1763316099978,0.00484794,3092.1,3091.5,3.2078]
[1763316100474,0.00484794,3092.1,3091.5,3.21563163]
[1763316100870,0.00484794,3092.1,3092.0,3.2078]
[1763316101874,0.00484794,3092.1,3091.5,1.44463163]
[1763316101875,9.21264794,3092.1,3091.5,0.00783163]
[1763316102170,3.2078,3091.7,3091.5,0.00783163]
[1763316102571,0.00484794,3092.1,3091.6,3.2078]
[1763316102772,0.00484794,3092.1,3092.0,3.2078]
[1763316103274,0.00391127,3093.1,3092.0,3.2078]
[1763316103275,0.00391127,3093.1,3092.0,9.2078]
[1763316103479,3.2078,3093.8,3093.0,3.2078]
[1763316103780,0.52395,3094.2,3093.1,3.2078]
[1763316103973,0.82331225,3095.7,3092.7,3.2078]
[1763316103974,3.2078,3093.5,3092.7,3.2078]
[1763316104176,3.2078,3093.5,3092.6,1.4368]
[1763316104177,0.0346,3093.7,3093.1,3.2078]
[1763316104382,0.03688657,3093.7,3093.6,3.2078]
[1763316104781,3.2078,3094.4,3093.6,3.2078]
[1763316105177,3.2078,3094.4,3093.4,3.2078]
[1763316105374,0.00484794,3094.2,3093.4,3.2078]
[1763316105574,0.52879794,3094.2,3093.4,3.2078]
[1763316105881,3.2078,3095.0,3093.8,3.2078]
[1763316106179,12.77428,3097.0,3093.5,3.57132059]
[1763316106180,0.52361,3096.2,3094.9,3.2078]
[1763316106377,0.52368,3095.8,3094.9,3.2078]
[1763316106572,3.73144,3096.1,3094.9,3.2078]
[1763316106776,3.2078,3095.5,3094.9,3.2078]
[1763316106983,0.52375,3095.4,3094.9,3.21651094]
[1763316107178,3.21500261,3095.5,3094.9,3.21651094]
[1763316107478,0.02626049,3095.2,3094.9,3.21651094]
[1763316108375,0.02626049,3095.1,3094.9,3.21651094]
[1763316108578,0.00720261,3095.5,3094.9,3.21651094]
[1763316108777,0.00720261,3095.5,3095.4,3.2078]
[1763316108986,0.5235,3096.9,3095.4,10.6446]
[1763316109278,0.836951,3098.1,3095.4,10.6446]
[1763316109279,3.2078,3097.4,3096.3,3.2078]
[1763316109469,3.2078,3097.4,3096.7,3.2078]
[1763316109871,3.21544604,3097.4,3096.7,3.21264794]
[1763316110071,0.52348,3097.0,3096.7,3.21264794]
[1763316110275,3.21544604,3097.4,3096.7,3.21264794]
[1763316110471,3.73885604,3097.4,3096.7,3.21264794]
[1763316110681,3.21544604,3097.4,3096.7,3.21264794]
[1763316111075,3.7313,3096.9,3096.7,0.00484794]
[1763316111384,3.2078,3096.9,3096.7,0.00484794]
[1763316111773,3.7313,3096.9,3096.7,0.00484794]
[1763316111974,9.7313,3096.9,3096.7,0.00484794]
[1763316112383,3.7313,3096.9,3096.7,0.00484794]
[1763316112585,9.7313,3096.9,3096.7,0.00484794]
[1763316112784,6.0,3096.8,3095.3,3.2078]
[1763316112986,3.2078,3096.0,3095.3,3.2078]
[1763316113576,0.52363,3096.1,3095.3,3.2078]
[1763316113780,0.5236,3096.3,3095.4,0.00484794]
[1763316113982,3.2078,3096.8,3095.8,3.2078]
[1763316114481,3.2078,3096.4,3095.8,3.2078]
[1763316114888,3.2078,3096.8,3095.8,3.2078]
[1763316115681,3.2078,3096.8,3095.7,3.22770985]
[1763316115682,3.2078,3096.4,3095.4,3.21264794]
[1763316115878,3.2078,3096.8,3095.9,3.2078]
[1763316116781,0.00764604,3097.4,3096.6,1.4368]
[1763316116983,0.836951,3098.1,3097.3,3.2078]
[1763316117184,0.836951,3098.1,3097.9,3.2078]
[1763316117891,0.84085155,3098.1,3097.9,3.21020261]
[1763316119582,3.2078,3099.8,3098.0,6.0]
[1763316119891,3.2078,3100.0,3099.0,3.2078]
[1763316120092,0.52311,3099.2,3099.0,3.2078]
[1763316120387,0.52311,3099.2,3097.9,1.32900261]
[1763316120388,1.5115,3099.2,3098.1,3.2078]
[1763316120588,0.52323,3098.5,3098.3,0.00484004]
[1763316120895,0.52341,3097.4,3096.7,3.2078]
[1763316121188,3.2078,3098.5,3097.1,3.2078]
[1763316121489,0.52329,3098.1,3097.5,3.2078]
[1763316121681,0.52333,3097.9,3097.5,3.21536907]
[1763316121887,0.00484004,3098.1,3097.5,3.21536907]
[1763316122191,0.52331,3098.0,3097.5,3.21536907]
[1763316122490,0.52337,3097.7,3097.5,0.00756907]
[1763316122791,6.52337,3097.7,3097.5,0.00756907]
[1763316122986,6.0,3097.6,3096.6,3.2078]
[1763316123182,3.2078,3097.1,3096.6,3.2078]
[1763316123389,3.73134,3096.7,3096.2,3.2078]
[1763316123581,3.2078,3097.4,3096.2,3.2078]
[1763316123783,0.52356,3096.6,3096.2,3.2078]
[1763316124083,0.52359,3096.3,3096.2,0.00258799]
[1763316124282,0.00384041,3096.6,3095.8,3.2078]
[1763316124478,0.00384041,3096.6,3096.2,3.2078]
[1763316124985,6.00384041,3096.6,3095.1,3.55327148]
[1763316125183,3.2078,3095.3,3095.1,0.0040151]
[1763316125386,0.52378,3095.2,3095.1,0.0040151]
[1763316125595,0.52391,3094.4,3093.3,3.2078]
[1763316125783,0.524,3093.9,3092.9,3.2078]
[1763316125989,3.2078,3093.5,3092.9,3.2078]
[1763316126283,3.2078,3093.5,3091.8,13.89696268]
[1763316126284,3.2078,3093.1,3092.1,3.2078]
[1763316126486,3.21081662,3093.1,3092.1,6.43911463]
[1763316126686,3.2078,3092.7,3092.3,0.00484832]
[1763316127298,3.2078,3092.7,3091.8,13.89696268]
[1763316127299,6.0,3092.6,3091.8,13.89696268]
[1763316127596,3.2078,3091.9,3091.8,13.89696268]
[1763316128389,3.2078,3091.9,3091.8,13.8997855]
[1763316128594,3.2078,3092.5,3091.8,26.33529535]
[1763316128893,0.00484832,3092.9,3091.8,26.33529535]
[1763316128894,0.00484832,3092.9,3092.4,3.22770985]
[1763316129093,3.2078,3094.3,3092.7,3.2078]
[1763316129396,3.2078,3094.3,3093.7,0.03232428]
[1763316130085,3.2078,3095.1,3094.1,3.2078]
[1763316130287,3.2078,3095.9,3094.9,3.2078]
[1763316130795,3.2078,3095.5,3094.9,3.2078]
[1763316131199,3.21649667,3095.5,3094.9,0.00784166]
[1763316131491,3.21649667,3095.5,3095.0,3.2078]
[1763316131692,3.2078,3095.1,3094.9,0.00784166]
[1763316131890,0.00869667,3095.5,3094.9,0.00784166]
[1763316131891,3.21649667,3095.5,3094.9,0.00784166]
[1763316132084,3.2078,3095.1,3094.9,0.00784166]
[1763316132990,3.21649667,3095.5,3094.9,0.00784166]
[1763316133499,3.2078,3095.1,3094.9,0.00784166]
[1763316134692,0.00869667,3095.5,3095.0,6.0]
[1763316134901,0.00869667,3095.5,3095.2,3.2078]
[1763316135495,0.00869667,3095.5,3094.9,3.23555151]
[1763316135696,0.00869667,3095.5,3095.4,1.4803]
[1763316136095,3.2078,3096.5,3095.4,1.4803]
[1763316136294,3.2078,3097.0,3096.1,3.2078]
[1763316136896,3.2078,3097.6,3096.8,1.4803]
[1763316137089,3.2078,3097.6,3096.9,0.00484832]
[1763316137090,3.2078,3097.2,3096.9,0.00484832]
[1763316137490,0.00484832,3097.5,3096.9,3.21264832]
[1763316137994,0.00484832,3097.5,3097.3,3.2078]
[1763316138194,0.00484832,3097.5,3097.3,3.21029619]
[1763316138495,0.00484832,3097.5,3097.3,0.00249619]
[1763316138704,0.00388865,3097.6,3097.4,3.2078]
[1763316138899,3.2078,3099.1,3097.5,3.22770985]
[1763316139093,3.2078,3099.1,3097.8,3.2078]
[1763316139401,13.0856203,3100.5,3097.8,3.2078]
[1763316139402,3.2078,3098.7,3097.8,3.2078]
[1763316139797,0.00484011,3098.6,3097.9,0.00484011]
[1763316140095,3.2078,3098.0,3097.9,0.00484011]
[1763316140696,0.00484011,3098.6,3097.9,0.00484011]
[1763316141003,0.00484011,3098.6,3098.4,3.2078]
[1763316141500,3.2078,3099.7,3098.4,9.2078]
[1763316141701,3.2078,3099.7,3099.0,3.2078]
[1763316142497,3.2078,3099.7,3099.4,3.2078]
[1763316142498,0.00682929,3099.7,3099.4,3.2078]
[1763316142692,0.01683614,3101.3,3099.4,3.2078]
[1763316142693,3.2078,3100.6,3099.6,3.22770985]
[1763316143004,0.8526203,3103.1,3100.5,4.6414]
[1763316143207,1.4621,3103.1,3102.7,3.2078]
[1763316143498,3.2078,3104.2,3102.9,3.22770985]
[1763316143700,3.2078,3105.5,3103.8,3.2078]
[1763316143896,3.2078,3106.2,3104.3,3.2078]
[1763316144092,3.2078,3106.2,3103.5,1.399]
[1763316144093,3.2078,3106.1,3105.3,3.2078]
[1763316144289,1.65216106,3107.8,3105.3,3.2078]
[1763316144290,3.2078,3106.7,3105.3,3.2078]
[1763316144501,0.52203,3105.6,3105.4,0.00483223]
[1763316144696,3.2078,3105.5,3105.4,0.00294075]
[1763316144892,0.52208,3105.3,3104.5,3.2078]
[1763316145096,3.2078,3105.1,3103.9,3.2078]
[1763316145301,0.00289929,3105.6,3103.9,3.2078]
[1763316145500,3.2078,3105.2,3104.2,3.2078]
[1763316145691,0.00289929,3105.6,3101.8,1.0445]
[1763316145692,0.52228,3104.2,3103.7,3.2078]
[1763316145894,0.52228,3104.2,3103.7,3.21013235]
[1763316146210,3.2078,3104.4,3103.7,0.00233235]
[1763316146400,3.2078,3104.4,3103.2,3.2078]
[1763316146401,1.4621,3103.5,3102.7,3.2078]
[1763316146599,3.2078,3102.9,3101.7,3.2078]
[1763316146800,0.5226,3102.2,3101.7,3.2078]
[1763316147003,3.2078,3102.4,3101.3,3.2078]
[1763316147198,3.2078,3102.4,3099.7,14.21422265]
[1763316147199,0.52276,3101.3,3100.4,3.2078]
[1763316147497,0.00483223,3101.2,3100.5,0.00483223]
[1763316147701,0.00483223,3101.2,3100.8,3.2078]
[1763316147997,0.00483223,3101.2,3100.5,0.00483223]
[1763316147998,0.52282,3100.9,3100.5,0.00483223]